bitfinex-derivatives/quotes_SOLF0:USTF0_20250424
["timestamp","ask_amount","ask_price","bid_price","bid_amount"]
[1745537486958,31.2814,152.35,152.3,6.5628]
[1745537487164,24.72,152.35,152.26,8.41469774]
[1745537487562,6.5621,152.33,152.3,6.5629]
[1745537487767,24.72,152.35,152.22,24.9438]
[1745537487768,24.72,152.35,152.28,8.41469774]
[1745537488367,31.2814,152.35,152.32,6.5621]
[1745537488559,24.72,152.35,152.32,6.5621]
[1745537488766,31.2813,152.35,152.32,6.5621]
[1745537489162,31.2813,152.35,152.28,8.41469774]
[1745537489368,24.72,152.35,152.3,8.41469774]
[1745537489768,24.72,152.35,152.34,6.5615]
[1745537491263,472.64,152.36,152.35,6.561]
[1745537491469,497.56,152.36,152.35,6.561]
[1745537493968,24.92,152.36,152.35,6.561]
[1745537511986,472.68,152.43,152.35,8.41469774]
[1745537512192,24.92,152.43,152.38,8.41469774]
[1745537512687,24.92,152.43,152.42,6.558]
[1745537513590,4e-05,152.44,152.43,6.5576]
[1745537516091,3.884,152.54,152.42,8.41469774]
[1745537516285,24.92,152.57,152.51,8.41469774]
[1745537516488,129.54170476,152.59,152.55,8.41469774]
[1745537516788,129.54170476,152.59,152.57,8.41469774]
[1745537516991,135.71520273,152.61,152.58,8.41469774]
[1745537517186,231.77820409,152.71,152.6,16.82939548]
[1745537517390,231.77820409,152.71,152.68,8.41469774]
[1745537517587,15.77513955,152.72,152.68,8.41469774]
[1745537517893,15.77513955,152.72,152.65,8.41469774]
[1745537518187,15.77513955,152.72,152.71,6.5456]
[1745537518394,15.77513955,152.72,152.71,14.96029774]
[1745537518589,15.77513955,152.72,152.71,6.5456]
[1745537518794,15.77513955,152.72,152.71,14.96029774]
[1745537519089,47.32541865,152.74,152.71,16.82939548]
[1745537519288,47.32541865,152.74,152.68,29.82]
[1745537519289,183.09256728,152.75,152.69,62.0]
[1745537519492,183.09256728,152.75,152.67,8.41469774]
[1745537519696,1.1396198,152.86,152.74,8.41469774]
[1745537519898,8.41469774,152.92,152.81,8.41469774]
[1745537520093,32.72,152.91,152.81,8.41469774]
[1745537520299,3.7494,152.94,152.84,8.41469774]
[1745537520499,32.72,152.93,152.86,8.41469774]
[1745537520698,32.72,152.93,152.84,8.41469774]
[1745537520897,32.72,152.92,152.82,8.41469774]
[1745537521104,32.72,152.92,152.86,8.41469774]
[1745537521399,32.72,152.92,152.87,182.08735601]
[1745537521589,32.72,152.91,152.87,182.08735601]
[1745537522199,16.6903543,152.94,152.87,182.08735601]
[1745537522592,32.72,152.93,152.87,182.08735601]
[1745537522897,12.9409543,152.88,152.85,151.73946335]
[1745537523093,508.4001,152.87,152.72,367.9409543]
[1745537523302,12.9409543,152.85,152.72,367.9409543]
[1745537523897,475.7001,152.87,152.75,12.9409543]
[1745537524103,32.7,152.86,152.78,12.9409543]
[1745537524302,32.7,152.86,152.75,12.9409543]
[1745537524597,12.9409543,152.85,152.72,367.9409543]
[1745537524807,12.9409543,152.85,152.72,12.9409543]
[1745537525104,475.7001,152.87,152.79,35.99129885]
[1745537525299,475.7001,152.87,152.81,12.9409543]
[1745537525300,32.68,152.86,152.81,12.9409543]
[1745537526399,32.68,152.86,152.79,35.99129885]
[1745537526602,32.68,152.86,152.81,12.9409543]
[1745537527204,14.05867855,152.86,152.82,35.99129885]
[1745537527797,14.05867855,152.86,152.82,76.602005]
[1745537527997,32.68,152.85,152.82,40.61070615]
[1745537528503,32.68,152.85,152.75,12.9409543]
[1745537528999,479.76238795,152.87,152.81,12.9409543]
[1745537529198,32.68,152.87,152.84,12.9409543]
[1745537529399,32.68,152.92,152.84,12.9409543]
[1745537529600,32.68,152.92,152.87,12.9409543]
[1745537530203,32.68,152.92,152.86,12.9409543]
[1745537530602,45.6209543,152.92,152.81,12.9409543]
[1745537530803,12.9409543,152.89,152.78,12.9409543]
[1745537531003,12.9409543,152.86,152.76,73.5556968]
[1745537531198,6.5411,152.82,152.78,182.83423528]
[1745537531399,419.20491389,152.85,152.79,12.9409543]
[1745537531606,451.86491389,152.85,152.78,182.83423528]
[1745537531809,451.86491389,152.85,152.78,195.77518958]
[1745537532204,451.86491389,152.85,152.79,71.68614515]
[1745537532399,451.86491389,152.85,152.81,12.9409543]
[1745537532704,451.86491389,152.85,152.84,12.9409543]
[1745537532899,32.66,152.87,152.84,19.4809543]
[1745537533307,7.5452,152.91,152.87,6.5387]
[1745537533502,35.04,152.9,152.87,21.02150607]
[1745537533706,35.04,152.9,152.84,21.02150607]
[1745537534210,57.97,152.9,152.81,47.08919522]
[1745537534408,3.8978,152.89,152.81,47.08919522]
[1745537534610,21.02150607,152.88,152.81,19.92468915]
[1745537535107,3.8978,152.89,152.81,19.92468915]
[1745537535610,11.14,152.88,152.81,19.92468915]
[1745537535810,11.14,152.88,152.81,40.94619522]
[1745537536011,11.14,152.88,152.81,19.92468915]
[1745537537008,11.14,152.88,152.78,21.02150607]
[1745537537306,11.14,152.88,152.81,21.02150607]
[1745537537908,6.5405,152.83,152.78,21.02150607]
[1745537538106,32.66,152.82,152.76,53.49505223]
[1745537538509,6.542,152.8,152.76,53.49505223]
[1745537538911,32.66,152.82,152.76,53.49505223]
[1745537539415,21.02150607,152.81,152.7,3.8494]
[1745537539710,16.93839454,152.81,152.7,3.8494]
[1745537539911,3.7875,152.8,152.7,3.8494]
[1745537540308,6.5433,152.77,152.7,3.8494]
[1745537540607,32.66,152.76,152.7,3.8494]
[1745537541311,32.66,152.76,152.69,21.02150607]
[1745537541516,32.66,152.76,152.65,21.02150607]
[1745537541712,21.02150607,152.72,152.59,21.02150607]
[1745537542013,21.02150607,152.69,152.56,25.08410607]
[1745537542210,21.02150607,152.66,152.55,86.82335312]
[1745537542409,6.5503,152.6,152.55,86.82335312]
[1745537542612,32.66,152.59,152.55,86.82335312]
[1745537542806,32.66,152.58,152.55,86.82335312]
[1745537543505,32.66,152.58,152.57,6.5516]
[1745537543710,32.66,152.58,152.55,86.82335312]
[1745537544311,21.02150607,152.66,152.55,86.82335312]
[1745537544312,3.7774,152.67,152.57,21.02150607]
[1745537544514,32.68,152.67,152.64,6.5482]
[1745537544711,32.68,152.67,152.61,21.02150607]
[1745537544911,32.68,152.67,152.66,6.5477]
[1745537545812,32.68,152.67,152.65,6.5481]
[1745537546017,32.68,152.67,152.61,21.02150607]
[1745537547212,14.03614715,152.67,152.61,21.02150607]
[1745537547617,14.03614715,152.67,152.65,6.5479]
[1745537547817,14.03614715,152.67,152.61,21.02150607]
[1745537548017,14.03614715,152.67,152.54,58.57719583]
[1745537548323,14.03614715,152.67,152.56,21.02150607]
[1745537548516,14.03614715,152.67,152.59,21.02150607]
[1745537548818,14.03614715,152.67,152.62,21.02150607]
[1745537549021,36.4414,152.73,152.65,21.02150607]
[1745537549319,36.4414,152.73,152.69,21.02150607]
[1745537549616,36.4414,152.73,152.7,6.546]
[1745537549817,36.4414,152.73,152.69,21.02150607]
[1745537550123,36.4414,152.73,152.66,21.02150607]
[1745537550516,57.46290607,152.73,152.6,3.8591]
[1745537550815,15.57,152.72,152.62,21.02150607]
[1745537551216,15.57,152.72,152.65,21.02150607]
[1745537551815,15.57,152.72,152.69,6.5461]
[1745537552011,15.57,152.72,152.65,21.02150607]
[1745537552211,15.57,152.72,152.63,21.02150607]
[1745537552516,15.57,152.72,152.58,21.02150607]
[1745537552821,4.0183,152.71,152.64,6.5483]
[1745537553017,4.0183,152.71,152.58,21.02150607]
[1745537553620,15.57,152.72,152.64,21.02150607]
[1745537553819,15.57,152.72,152.67,21.02150607]
[1745537554021,15.57,152.72,152.71,6.5456]
[1745537554420,32.68,152.73,152.7,21.02150607]
[1745537554624,32.68,152.73,152.72,6.5451]
[1745537555221,12.5513,152.73,152.72,6.5451]
[1745537555721,503.6,152.76,152.75,6.5438]
[1745537556019,32.12,152.76,152.75,6.5438]
[1745537557015,21.1868,152.76,152.75,6.5438]
[1745537557223,15.58,152.8,152.79,6.5421]
[1745537557224,47.7,152.8,152.79,6.5421]
[1745537557421,47.7,152.8,152.73,21.02150607]
[1745537557621,47.7,152.8,152.79,6.5421]
[1745537557824,47.7,152.8,152.73,21.02150607]
[1745537558417,47.7,152.8,152.71,21.02150607]
[1745537558619,47.7,152.8,152.69,21.02150607]
[1745537559518,47.7,152.8,152.76,6.5434]
[1745537559715,47.7,152.8,152.72,21.02150607]
[1745537560224,47.7,152.8,152.75,6.5438]
[1745537560523,47.7,152.8,152.72,21.02150607]
[1745537560922,47.7,152.8,152.74,6.544]
[1745537561125,47.7,152.8,152.72,21.02150607]
[1745537561529,47.7,152.8,152.75,6.5436]
[1745537561721,73.51,152.8,152.75,6.5436]
[1745537563028,73.51,152.8,152.76,6.5434]
[1745537563329,73.51,152.8,152.75,21.02150607]
[1745537564420,73.51,152.8,152.73,21.02150607]
[1745537564734,73.51,152.8,152.76,6.5431]
[1745537564930,73.51,152.8,152.74,1.63637006]
[1745537565230,73.51,152.8,152.75,1.63637006]
[1745537565927,6.5423,152.79,152.75,8.18017006]
[1745537566128,6.5423,152.79,152.75,6.5438]
[1745537567124,75.9,152.8,152.67,22.37567995]
[1745537567332,24.84090607,152.78,152.67,43.39718602]
[1745537567533,24.84090607,152.78,152.68,1.63681208]
[1745537567733,6.5439,152.75,152.71,6.5453]
[1745537568035,32.1,152.74,152.71,6.5453]
[1745537568233,32.1,152.74,152.67,43.39718602]
[1745537568438,32.1,152.74,152.67,22.37567995]
[1745537568935,503.44,152.74,152.62,22.37567995]
[1745537569136,21.02150607,152.72,152.62,22.37567995]
[1745537569338,7.9129,152.71,152.63,8.18603079]
[1745537569637,7.9129,152.71,152.64,1.63713079]
[1745537569835,6.5475,152.67,152.64,1.63713079]
[1745537570040,32.1,152.66,152.64,1.63713079]
[1745537570236,32.1,152.66,152.65,1.63713079]
[1745537571238,32.1,152.66,152.65,8.18523079]
[1745537571538,32.1,152.66,152.65,1.63713079]
[1745537572938,32.1,152.66,152.65,8.18523079]
[1745537573138,32.1,152.66,152.65,1.63713079]
[1745537574342,32.1,152.66,152.65,8.18523079]
[1745537574641,32.1,152.66,152.65,1.63713079]
[1745537574839,32.1,152.66,152.65,8.18523079]
[1745537575034,32.1,152.66,152.65,1.63713079]
[1745537575440,32.1,152.66,152.65,8.18523079]
[1745537576740,475.2442,152.74,152.65,1.63713079]
[1745537576741,30.98,152.7,152.65,1.63713079]
[1745537577135,30.98,152.7,152.69,6.5464]
[1745537577538,30.98,152.7,152.69,8.18353079]
[1745537578044,30.98,152.7,152.69,6.5464]
[1745537579440,30.98,152.7,152.68,6.5467]
[1745537579737,30.98,152.7,152.64,21.02150607]
[1745537579948,30.98,152.7,152.68,6.5466]
[1745537580350,30.98,152.7,152.64,21.02150607]
[1745537580550,30.98,152.7,152.67,6.547]
[1745537580750,30.98,152.7,152.65,1.63720474]
[1745537581050,7.7094,152.69,152.67,6.5472]
[1745537581444,7.7094,152.69,152.61,21.02150607]
[1745537581750,7.7094,152.69,152.67,6.547]
[1745537582452,502.32,152.74,152.67,21.02150607]
[1745537582645,30.98,152.74,152.7,21.02150607]
[1745537583153,30.98,152.74,152.73,6.5447]
[1745537583554,30.98,152.74,152.7,21.02150607]
[1745537583753,30.98,152.74,152.67,21.02150607]
[1745537584048,48.84,152.74,152.67,21.02150607]
[1745537584254,48.84,152.74,152.64,21.02150607]
[1745537584446,64.49,152.74,152.64,21.02150607]
[1745537584646,66.88,152.74,152.64,21.02150607]
[1745537585151,6.5451,152.72,152.68,6.5466]
[1745537585555,78.05,152.74,152.64,21.02150607]
[1745537585950,6.5448,152.73,152.7,6.546]
[1745537586151,78.05,152.74,152.7,6.546]
[1745537586356,78.05,152.74,152.7,21.02150607]
[1745537586556,78.05,152.74,152.73,6.5447]
[1745537586860,75.66,152.74,152.73,6.5447]
[1745537587550,42.15,152.74,152.64,83.02150607]
[1745537587755,42.15,152.74,152.65,1.63700029]
[1745537588257,6.5464,152.7,152.66,1.63700029]
[1745537588556,30.98,152.69,152.66,1.63700029]
[1745537588955,30.98,152.69,152.67,1.63700029]
[1745537589558,30.98,152.69,152.68,1.63700029]
[1745537589756,30.98,152.69,152.61,21.02150607]
[1745537590254,15.67,152.68,152.61,21.02150607]
[1745537590446,15.67,152.68,152.67,6.5473]
[1745537590651,41.09,152.68,152.61,21.02150607]
[1745537590958,41.09,152.68,152.67,6.5473]
[1745537592558,25.42,152.68,152.67,6.5473]
[1745537592757,15.4593,152.68,152.67,27.56880607]
[1745537592948,29.84,152.73,152.67,27.56150607]
[1745537593149,29.84,152.73,152.71,21.02150607]
[1745537593559,11.17,152.74,152.71,21.02150607]
[1745537594058,11.17,152.74,152.73,6.5447]
[1745537594249,29.84,152.78,152.71,21.02150607]
[1745537594454,29.84,152.78,152.77,6.543]
[1745537596258,15.67,152.81,152.8,6.5417]
[1745537597958,29.84,152.82,152.81,6.5413]
[1745537598963,501.3,152.86,152.78,21.02150607]
[1745537600463,501.3,152.86,152.83,6.5403]
[1745537601062,501.3,152.86,152.85,6.5396]
[1745537601264,501.3,152.86,152.81,21.02150607]
[1745537601660,501.3,152.86,152.83,6.5401]
[1745537601859,501.3,152.86,152.81,21.02150607]
[1745537602256,501.3,152.86,152.82,1.63534636]
[1745537602457,29.84,152.86,152.82,1.63534636]
[1745537602660,29.84,152.86,152.81,21.02150607]
[1745537602862,29.84,152.86,152.78,21.02150607]
[1745537603265,6.5398,152.85,152.8,6.5415]
[1745537603565,29.84,152.86,152.79,1.63555511]
[1745537603765,36.3793,152.86,152.81,6.541]
[1745537603960,29.84,152.86,152.81,6.541]
[1745537604165,29.84,152.86,152.76,4.0314]
[1745537604359,3.8082,152.85,152.77,1.63565314]
[1745537604667,3.8082,152.85,152.79,6.5419]
[1745537605061,3.8082,152.85,152.75,21.02150607]
[1745537605267,6.5414,152.81,152.76,1.63572587]
[1745537605467,29.82,152.8,152.76,1.63572587]
[1745537605666,36.3617,152.8,152.76,8.17882587]
[1745537605866,36.3617,152.8,152.76,6.5431]
[1745537606166,29.82,152.8,152.76,6.5431]
[1745537606663,29.82,152.8,152.72,24.90080607]
[1745537606869,29.82,152.84,152.78,21.02150607]
[1745537607267,29.82,152.84,152.82,6.5406]
[1745537608070,29.82,152.84,152.83,6.5404]
[1745537608468,29.82,152.84,152.78,21.02150607]
[1745537608667,29.82,152.84,152.81,6.5412]
[1745537609272,29.82,152.84,152.82,6.5408]
[1745537609474,29.82,152.84,152.78,21.02150607]
[1745537610177,21.02150607,152.82,152.72,358.8793]
[1745537610475,6.542,152.8,152.75,6.5436]
[1745537610775,29.82,152.79,152.72,3.8793]
[1745537610974,36.3624,152.79,152.74,6.5442]
[1745537611174,29.82,152.79,152.72,3.8793]
[1745537611575,6.5426,152.78,152.73,6.5444]
[1745537611775,29.82,152.79,152.7,21.02150607]
[1745537613376,29.82,152.79,152.68,3.8223]
[1745537613571,29.82,152.82,152.76,21.02150607]
[1745537614180,29.82,152.82,152.78,6.5423]
[1745537614879,29.82,152.82,152.79,6.542]
[1745537617280,29.82,152.82,152.74,3.8452]
[1745537617783,29.82,152.82,152.78,6.5425]
[1745537617974,29.82,152.82,152.73,21.02150607]
[1745537618281,50.84150607,152.82,152.7,24.86670607]
[1745537618781,6.5424,152.79,152.75,6.5438]
[1745537619079,29.82,152.82,152.7,24.86670607]
[1745537619583,6.5424,152.79,152.7,24.86670607]
[1745537619882,21.02150607,152.78,152.66,29.82]
[1745537620076,40.086,152.77,152.73,6.5447]
[1745537620277,40.086,152.77,152.66,21.02150607]
[1745537620672,33.5428,152.77,152.66,21.02150607]
[1745537621179,6.5441,152.75,152.7,6.5456]
[1745537621483,33.5428,152.77,152.7,6.5456]
[1745537621983,21.02150607,152.75,152.65,3.7602]
[1745537622177,33.5428,152.77,152.65,3.7602]
[1745537622178,3.7346,152.74,152.65,3.7602]
[1745537622378,29.82,152.73,152.66,21.02150607]
[1745537624380,29.82,152.73,152.69,6.5462]
[1745537624582,29.82,152.73,152.66,21.02150607]
[1745537625381,29.82,152.73,152.7,6.5459]
[1745537626275,3.7019,152.78,152.74,6.5439]
[1745537626478,32.5019,152.78,152.69,21.02150607]
[1745537627280,32.5019,152.78,152.72,21.02150607]
[1745537628382,32.5019,152.78,152.69,21.02150607]
[1745537629282,32.5019,152.78,152.75,6.5435]
[1745537631084,32.5019,152.78,152.69,21.02150607]
[1745537631284,32.5019,152.78,152.7,21.06540189]
[1745537631685,32.5019,152.78,152.73,21.06540189]
[1745537631990,28.8,152.78,152.73,21.06540189]
[1745537632193,28.8,152.78,152.77,6.543]
[1745537633892,28.8,152.78,152.73,12.9572987]
[1745537634099,28.8,152.78,152.65,358.7602]
[1745537634100,28.8,152.78,152.7,12.9572987]
[1745537634496,28.8,152.78,152.76,6.5433]
[1745537634699,23.79,152.77,152.76,6.5433]
[1745537636193,499.96,152.83,152.76,12.9572987]
[1745537636794,499.96,152.83,152.74,11.7144]
[1745537636991,499.96,152.83,152.74,7.6724]
[1745537637192,499.96,152.83,152.74,3.8573]
[1745537637499,6.541,152.82,152.77,6.5427]
[1745537637693,6.541,152.82,152.74,3.8573]
[1745537637694,499.96,152.83,152.74,3.8573]
[1745537637895,499.96,152.83,152.73,12.9572987]
[1745537638199,6.5411,152.82,152.77,6.5426]
[1745537638496,499.96,152.83,152.73,12.9572987]
[1745537638797,6.542,152.8,152.76,6.5432]
[1745537638991,28.8,152.79,152.76,6.5432]
[1745537640399,28.8,152.79,152.73,12.9572987]
[1745537640900,28.8,152.79,152.76,6.5434]
[1745537641501,28.8,152.79,152.77,6.5426]
[1745537641701,28.8,152.79,152.73,12.9572987]
[1745537642199,28.8,152.79,152.78,6.5426]
[1745537642903,28.8,152.79,152.73,12.9572987]
[1745537643402,28.8,152.79,152.76,6.5432]
[1745537643701,28.8,152.79,152.73,12.9572987]
[1745537644004,28.8,152.79,152.78,6.5426]
[1745537644198,28.8,152.79,152.69,28.8]
[1745537644502,28.8,152.79,152.68,12.9572987]
[1745537644698,3.7531,152.78,152.68,12.9572987]
[1745537645100,25.35,152.77,152.73,6.5444]
[1745537645404,31.8931,152.77,152.73,6.5444]
[1745537645807,25.35,152.77,152.74,6.5442]
[1745537646003,25.35,152.77,152.68,12.9572987]
[1745537646204,25.35,152.77,152.76,6.5434]
[1745537647006,25.35,152.77,152.7,41.892]
[1745537647208,25.35,152.77,152.74,12.9572987]
[1745537647505,28.8,152.79,152.78,6.5426]
[1745537647907,28.8,152.79,152.71,12.9572987]
[1745537649207,28.8,152.79,152.78,6.5426]
[1745537649809,27.7,152.82,152.74,12.9572987]
[1745537650310,27.7,152.82,152.8,6.5415]
[1745537651009,27.7,152.82,152.74,12.9572987]
[1745537651407,27.7,152.82,152.81,6.5413]
[1745537652510,27.7,152.82,152.75,12.9572987]
[1745537653010,18.56,152.84,152.82,6.5405]
[1745537653409,27.68,152.85,152.82,6.5405]
[1745537653610,27.68,152.85,152.78,12.9572987]
[1745537653809,27.68,152.85,152.79,1.63567011]
[1745537654008,34.2198,152.85,152.8,8.17717011]
[1745537654208,27.68,152.85,152.81,1.63567011]
[1745537654402,27.68,152.85,152.82,1.63567011]
[1745537654609,27.68,152.85,152.78,6.5424]
[1745537655106,3.7244,152.84,152.78,6.5424]
[1745537655507,3.7244,152.84,152.75,12.9572987]
[1745537655707,3.7244,152.84,152.73,12.9572987]
[1745537655902,3.7244,152.84,152.7,367.9572987]
[1745537655903,16.6816987,152.84,152.7,367.9572987]
[1745537656108,6.5419,152.8,152.75,6.5435]
[1745537656408,27.68,152.79,152.75,6.5435]
[1745537657312,34.2221,152.79,152.75,6.5435]
[1745537657706,27.68,152.79,152.75,6.5435]
[1745537658411,27.68,152.79,152.76,6.5434]
[1745537658912,34.2222,152.79,152.75,6.5436]
[1745537661012,27.68,152.79,152.75,6.5436]
[1745537661611,27.68,152.79,152.76,6.5434]
[1745537661907,27.68,152.79,152.7,367.9572987]
[1745537662114,27.68,152.79,152.73,12.9572987]
[1745537662312,27.68,152.79,152.77,6.5428]
[1745537662814,27.68,152.79,152.67,20.9106987]
[1745537663016,7.516,152.78,152.67,20.9106987]
[1745537663307,7.516,152.78,152.72,6.5449]
[1745537663502,7.516,152.78,152.67,20.9106987]
[1745537663908,7.516,152.78,152.73,6.5444]
[1745537664108,7.516,152.78,152.67,20.9106987]
[1745537664310,4.0511,152.77,152.67,20.9106987]
[1745537664510,4.0511,152.77,152.71,6.5453]
[1745537665015,6.5438,152.76,152.71,6.5453]
[1745537665313,27.68,152.75,152.72,6.5451]
[1745537665509,27.68,152.75,152.67,20.9106987]
[1745537665713,27.68,152.75,152.74,6.5443]
[1745537666313,21.45,152.76,152.75,6.5438]
[1745537666616,21.45,152.76,152.75,8.18015132]
[1745537667117,21.45,152.76,152.75,1.63635132]
[1745537667314,21.45,152.76,152.75,1.6363447]
[1745537667710,21.45,152.76,152.67,20.9106987]
[1745537667914,35.196,152.78,152.68,1.63636141]
[1745537668113,35.196,152.78,152.67,20.9106987]
[1745537668419,6.5434,152.76,152.72,6.5449]
[1745537669417,35.196,152.78,152.73,6.5444]
[1745537670116,6.543,152.77,152.73,6.5444]
[1745537670609,65.7087,152.78,152.74,6.5442]
[1745537671417,6.543,152.77,152.74,6.5442]
[1745537671618,59.166,152.78,152.67,20.9106987]
[1745537671920,65.7089,152.78,152.67,20.9106987]
[1745537672612,65.7089,152.78,152.74,6.5441]
[1745537672817,65.7089,152.78,152.67,20.9106987]
[1745537673222,6.543,152.77,152.73,6.5445]
[1745537673420,59.166,152.78,152.73,6.5445]
[1745537673919,6.5431,152.77,152.73,6.5445]
[1745537674119,59.166,152.78,152.74,6.5442]
[1745537674419,65.7088,152.78,152.67,20.9106987]
[1745537674616,65.7088,152.78,152.73,6.5443]
[1745537675119,65.7088,152.78,152.67,20.9106987]
[1745537675716,59.166,152.78,152.67,20.9106987]
[1745537676118,65.7086,152.78,152.67,20.9106987]
[1745537676317,59.166,152.78,152.67,12.9572987]
[1745537676621,6.5442,152.75,152.66,31.7402]
[1745537676817,27.7,152.74,152.66,4.0602]
[1745537677320,23.97,152.78,152.73,12.9572987]
[1745537677521,23.97,152.78,152.67,27.7]
[1745537677716,23.97,152.78,152.69,12.9572987]
[1745537677920,31.7649,152.77,152.73,6.5445]
[1745537678114,31.7649,152.77,152.69,12.9572987]
[1745537678317,3.7454,152.76,152.69,12.9572987]
[1745537679013,23.97,152.78,152.72,12.9572987]
[1745537679212,23.97,152.78,152.77,6.543]
[1745537679519,30.5652,152.8,152.75,8.35093311]
[1745537679717,30.5652,152.8,152.78,6.5423]
[1745537679914,30.5652,152.8,152.79,1.63618936]
[1745537680920,30.5652,152.8,152.73,8.35093311]
[1745537681119,4.0944,152.79,152.73,8.35093311]
[1745537681322,4.0944,152.79,152.76,6.543]
[1745537681719,4.0944,152.79,152.71,12.9614075]
[1745537682023,4.0944,152.79,152.76,6.5431]
[1745537684024,4.0944,152.79,152.77,6.5429]
[1745537684220,4.0944,152.79,152.7,13.092]
[1745537684425,4.0944,152.79,152.68,12.9614075]
[1745537684827,4.0944,152.79,152.74,6.5443]
[1745537685128,6.5428,152.78,152.74,6.5443]
[1745537685323,3.7225,152.77,152.74,6.5443]
[1745537685626,26.62,152.76,152.74,6.5443]
[1745537686222,26.62,152.76,152.75,6.5438]
[1745537686424,30.7144,152.79,152.74,12.9614075]
[1745537686826,30.7144,152.79,152.78,6.5426]
[1745537687824,30.7144,152.79,152.77,6.5429]
[1745537688129,26.62,152.82,152.77,12.9614075]
[1745537688527,26.62,152.82,152.79,6.5419]
[1745537689329,26.62,152.82,152.77,12.9614075]
[1745537689926,26.62,152.82,152.79,6.542]
[1745537691332,26.62,152.82,152.81,6.5413]
[1745537695833,49.85,152.85,152.8,12.9614075]
[1745537698434,49.85,152.85,152.82,6.5406]
[1745537698630,49.85,152.85,152.8,12.9614075]
[1745537700536,49.85,152.85,152.81,6.5411]
[1745537700832,49.85,152.85,152.8,12.9614075]
[1745537701238,49.85,152.85,152.82,6.5406]
[1745537703141,49.85,152.85,152.8,12.9614075]
[1745537703437,49.85,152.85,152.82,8.34382652]
[1745537703633,49.85,152.85,152.83,6.54]
[1745537703841,49.85,152.85,152.82,8.34382652]
[1745537704033,23.23,152.85,152.84,8.34382652]
[1745537704234,23.23,152.85,152.84,14.88382652]
[1745537704435,26.62,152.87,152.84,8.34382652]
[1745537704645,26.62,152.87,152.86,6.5391]
[1745537704845,26.62,152.87,152.86,14.88292652]
[1745537706141,26.62,152.9,152.86,8.34382652]
[1745537706945,26.62,152.9,152.89,8.34382652]
[1745537707140,26.85323,152.93,152.89,8.34382652]
[1745537707340,26.85323,152.93,152.9,6.5372]
[1745537707645,53.00323,152.93,152.9,6.5372]
[1745537708445,53.00323,152.93,152.89,14.88152652]
[1745537708640,53.00323,152.93,152.87,8.34382652]
[1745537709143,59.53963,152.93,152.88,6.538]
[1745537709442,53.00323,152.93,152.9,6.5373]
[1745537709645,53.00323,152.93,152.87,8.34382652]
[1745537710244,59.53963,152.93,152.87,8.34382652]
[1745537710545,53.00323,152.93,152.87,8.34382652]
[1745537710751,6.5367,152.92,152.87,8.34382652]
[1745537710952,53.00323,152.93,152.87,8.34382652]
[1745537711249,53.00323,152.93,152.87,14.88222652]
[1745537711652,6.5371,152.91,152.87,14.88222652]
[1745537711847,6.5371,152.91,152.87,6.5384]
[1745537712055,53.00323,152.93,152.85,8.34382652]
[1745537712352,53.00323,152.93,152.84,8.34382652]
[1745537712755,53.00323,152.93,152.86,6.5391]
[1745537713052,53.00323,152.93,152.84,8.34382652]
[1745537713355,6.5372,152.91,152.84,8.34382652]
[1745537713855,6.5376,152.9,152.86,6.5388]
[1745537714054,26.66,152.89,152.86,6.5388]
[1745537714256,26.66,152.89,152.84,8.34382652]
[1745537714554,26.66,152.89,152.87,6.5385]
[1745537716156,26.66,152.89,152.86,6.5389]
[1745537716360,33.1979,152.89,152.84,8.34382652]